Cogmind - Beta 13 @@@ ROGUE MODE // 2024.04.25 @ 18:23:32 Player: zoefiri Result: Destroyed by S-27 Virus with Autogun Performance ------------- Evolutions (5) 2500 Regions Visited (10) 2000 Robots Destroyed (176) 880 Value Destroyed (6396) 6396 Prototype IDs (31) 620 Alien Tech Used (0) 0 Bonus (396) 396 TOTAL SCORE: 12792 Bonus ------- High Alert Combat Kills 56 Follower Combat Kills 40 Aligned with FarCom 300 Cogmind --------- Core Integrity 0/1000 Matter 192/300 Energy 98/160 System Corruption 18% Temperature Cool (0) Movement Core (650) Ox12 Location -5/Factory Parts ------- > --- POWER (2) -------- Light Nuclear Core > --- PROPULSION (4) --- (None) > --- UTILITY (7) ------ Medium Storage Unit Enhanced Optical Array Improved Target Analyzer Hacking Suite > --- WEAPON (4) ------- Firepult > --- INVENTORY (10) --- Hybrid Fission Core Improved Heat Sink Advanced Heat Sink Layered Light Armor Plating Concussive RPG (1) Great Maul Peak State ------------ > --- POWER ------------ Angular Momentum Engine Micro Fission Core > --- PROPULSION ------- Medium Treads Improved VSS Leg Improved VSS Leg Improved VSS Leg > --- UTILITY ---------- Advanced Heat Sink Medium Storage Unit Advanced Signal Interpreter Improved Target Analyzer Layered Light Armor Plating Shock Absorption System Hacking Suite > --- WEAPON ----------- Precision Beam Rifle Gatling Laser Proton Cannon Improved Remote Datajack > --- INVENTORY -------- Hybrid Fission Core Improved Heat Sink Relay Coupler [Grunt] Improved EM Pulse Cannon Firepult Concussive RPG Great Maul [Rating: 80] Favorites ----------- Power Micro Nuclear Core Engine Light Ion Engine Power Core Micro Nuclear Core Propulsion Improved VSS Leg Treads Medium Treads Leg Improved VSS Leg Hover Unit Antigrav System Utility Medium Storage Unit Device Improved Cooling System Storage Medium Storage Unit Processor Improved Target Analyzer Hackware Hacking Suite Protection Hardened Medium Armor Plating Weapon Heavy Particle Gun Energy Gun Heavy Particle Gun Energy Cannon Cooled Particle Cannon Ballistic Gun Shotgun Launcher Rocket Launcher Special Weapon Improved Remote Datajack Impact Weapon Great Maul Build | -11 -10 -10 -9 -9 -9 -8 -8 -7 -6 -5 ------- Run | Yrd Mat Min Mat Min Exi Min Mat Fac Fac Fac Slots Evolved 10 | . . . 2 . . . 2 2 2 2 Power 1 | . . . . . . . . 1 . . Propulsion 2 | . . . 1 . . . . . 1 . Utility 5 | . . . 1 . . . 1 1 1 1 Weapon 2 | . . . . . . . 1 . . 1 Parts Attached 215 | 6 6 4 22 2 . 2 41 42 26 64 Power 25 | 1 . 1 2 . . . 4 4 2 11 Engine 7 | 1 . . 1 . . . 3 . . 2 Core 18 | . . 1 1 . . . 1 4 2 9 Reactor . | . . . . . . . . . . . Propulsion 47 | 2 1 3 6 1 . . 7 7 9 11 Treads 2 | . . . . . . . . . . 2 Leg 44 | 2 1 3 6 1 . . 7 7 9 8 Wheel . | . . . . . . . . . . . Hover 1 | . . . . . . . . . . 1 Flight . | . . . . . . . . . . . Utility 57 | 1 1 . 5 1 . . 11 12 10 16 Device 25 | . 1 . 4 . . . 3 4 4 9 Storage 5 | 1 . . 1 . . . 2 . . 1 Processor 3 | . . . . . . . . . . 3 Hackware 1 | . . . . . . . . 1 . . Protection 23 | . . . . 1 . . 6 7 6 3 Artifact . | . . . . . . . . . . . Weapon 86 | 2 4 . 9 . . 2 19 19 5 26 Energy Gun 53 | 1 2 . 7 . . 1 15 10 2 15 Energy Cannon 12 | . . . . . . . 2 2 3 5 Ballistic Gun 9 | 1 2 . 1 . . . 2 2 . 1 Ballistic Cannon . | . . . . . . . . . . . Launcher 1 | . . . . . . 1 . . . . Special Weapon 3 | . . . . . . . . . . 3 Impact Weapon 8 | . . . 1 . . . . 5 . 2 Slashing Weapon . | . . . . . . . . . . . Piercing Weapon . | . . . . . . . . . . . Special Melee Weapon . | . . . . . . . . . . . Unidentified Prototypes 8 | . . . 1 . . . 2 2 1 2 Parts Lost 59 | . . . 8 1 . . 13 2 1 34 Power 11 | . . . 2 . . . 3 . 1 5 Propulsion 16 | . . . 3 1 . . 2 . . 10 Utility 16 | . . . 1 . . . 5 2 . 8 Weapon 16 | . . . 2 . . . 3 . . 11 Highest Loss Streak 6 | . . . 6 1 . . 3 1 1 6 To Critical Strikes 2 | . . . . . . . . . . 2 Average Slot Usage (%) 93 | . 99 100 90 99 100 100 91 98 93 89 Engine 1 | . 14 . 1 . . . 4 . . 1 Core 10 | . . 13 9 11 11 11 3 14 12 8 Leg 22 | . 28 28 27 32 33 33 23 22 23 17 Device 10 | . 13 14 20 15 11 11 13 12 5 8 Storage 7 | . 14 14 11 11 11 11 9 7 6 5 Processor 2 | . . . . . . . . . . 7 Hackware 2 | . . . . . . . . 1 6 5 Protection 10 | . . . . 6 11 11 10 14 16 5 Energy Gun 16 | . 14 14 12 22 22 22 18 19 15 12 Energy Cannon 2 | . . . . . . . 2 . 3 2 Ballistic Gun 1 | . 14 14 5 . . . 4 . . . Special Weapon 1 | . . . . . . . . . . 3 Naked Turns . | . . . . . . . . . . . Heaviest Build 67 | 11 15 17 23 29 29 29 38 55 62 67 Greatest Support 66 | 20 20 20 30 35 35 35 39 56 66 65 Greatest Overweight (x) 12 | . . . 4 1 . . 8 1 1 12 Average Overweight (x) . | . . . . . . . . . . . Largest Inventory Capacity 10 | 8 8 8 10 10 10 10 10 10 10 10 Average Capacity 9 | 6 8 8 8 10 10 10 10 10 10 10 Most Carried 10 | 6 8 8 8 9 10 10 10 10 10 10 Average Carried 9 | 4 7 7 7 8 9 10 9 9 9 9 Final Capacity 10 | 8 8 8 10 10 10 10 10 10 10 10 Final Carried 10 | 6 8 8 8 9 10 10 10 10 10 6 Class Distribution -------------------- 45% | Tank 19% | Scavenger-Skirmisher 12% | Mutant 10% | Scavenger-Mutant 5% | Scavenger-Tank 3% | Skirmisher Dominant Class ---------------- Mutant | -10/Materials Mutant | -10/Mines Scavenger-Mutant | -9/Materials Scavenger-Mutant | -9/Mines Scavenger-Mutant | -9/Exiles Scavenger-Mutant | -8/Mines Scavenger-Skirmisher | -8/Materials Tank | -7/Factory Tank | -6/Factory Scavenger-Skirmisher | -5/Factory Resources | -11 -10 -10 -9 -9 -9 -8 -8 -7 -6 -5 ----------- Run | Yrd Mat Min Mat Min Exi Min Mat Fac Fac Fac Matter Collected 3064 | 63 228 121 333 31 . . 658 503 283 844 Remotely . | . . . . . . . . . . . Salvage Created 7273 | . 380 192 750 96 . 7 1356 1389 1101 2002 Parts 323 | . 17 9 27 6 . 3 61 68 50 82 Haulers Intercepted 13 | . 2 . 2 . . . 4 4 1 . Recyclers Shooed 9 | . . 1 . . . . 2 . 4 2 Parts Field Recycled . | . . . . . . . . . . . Retrieved Matter . | . . . . . . . . . . . Parts Self-Destructed . | . . . . . . . . . . . Prevented . | . . . . . . . . . . . Kills | -11 -10 -10 -9 -9 -9 -8 -8 -7 -6 -5 ------- Run | Yrd Mat Min Mat Min Exi Min Mat Fac Fac Fac Combat Hostiles Destroyed 129 | . 3 4 17 5 . 3 25 20 17 35 Melee 4 | . . . 2 . . . . 1 . 1 Guns 91 | . 3 4 8 5 . . 22 13 11 25 Cannons 12 | . . . . . . . 2 . 6 4 AOE 3 | . . . . . . 3 . . . . Classes Destroyed 13 | . 4 . 2 2 . . 2 3 . . Worker 8 | . . . . . . . 2 4 2 . Builder 5 | . . . . . . . . 2 2 1 Hauler 13 | . 2 . 2 . . . 4 4 1 . Recycler 7 | . 2 . . . . . 2 2 . 1 Mechanic 2 | . . . . . . . 1 1 . . Operator 4 | . . . 1 . . . 1 1 1 . Watcher 8 | . 1 . . . . . 1 2 3 1 Swarmer 28 | . . . . 2 . 3 9 4 5 5 Grunt 49 | . 3 4 13 2 . . 10 3 4 10 Duelist 3 | . . . . 1 . . . 1 . 1 Sentry 13 | . . . 4 . . . 6 1 1 1 Hunter 7 | . . . . . . . . 2 2 3 Programmer 29 | . . . . . . . . 9 5 15 Best Kill Streak 8 | . 4 2 6 2 . 3 8 8 6 5 Combat Bots Only 6 | . 1 2 6 2 . 3 6 4 5 4 Max Kills in Single Turn 3 | . 1 1 1 1 . 2 2 3 2 2 Gunslinging 1 | . . . . . . . . 1 . . Exploded 2 | . . . . . . 2 . . . . Melee 1 | . . . 1 . . . . 1 . 1 Uniques/NPCs Destroyed . | . . . . . . . . . . . Combat | -11 -10 -10 -9 -9 -9 -8 -8 -7 -6 -5 -------- Run | Yrd Mat Min Mat Min Exi Min Mat Fac Fac Fac Hostile Shots Fired 952 | . 24 12 101 16 . 6 160 149 138 346 Missed 245 | . 8 1 24 3 . 1 37 43 47 81 Damage Taken 11499 | . 182 154 1017 193 . 38 1771 1247 1568 5329 Core 2056 | . 40 10 304 10 . 6 350 123 203 1010 Absorbed by Shields 236 | . . . . . . . . 236 . . Redirected to Shielding 126 | . . . . . . . 75 51 . . Core Remaining (%) 65 | 100 . 80 . . . 20 36 82 76 . Volleys Fired 431 | . 22 11 35 11 . 2 85 71 76 118 Largest 4 | . 2 2 2 2 . 2 3 3 3 4 Hottest 300 | . 68 68 130 130 . 98 195 182 171 300 Shots Fired 1112 | . 44 22 63 22 . 4 242 190 228 297 Gun 992 | . 44 22 63 22 . 2 216 188 174 261 Cannon 114 | . . . . . . . 26 2 54 32 Launcher 2 | . . . . . . 2 . . . . Special 4 | . . . . . . . . . . 4 Kinetic 96 | . 22 11 23 . . . 40 . . . Thermal 914 | . . . 24 22 . 2 182 190 228 266 Explosive 2 | . . . . . . 2 . . . . Electromagnetic 96 | . 22 11 16 . . . 20 . . 27 Robot Hit Streak 17 | . 7 12 7 6 . 7 13 9 14 17 Robot Miss Streak 7 | . 5 3 7 7 . 3 5 5 4 5 Penetration Max . | . . . . . . . . . . . Secondary Targets 14 | . . . 2 1 . . 1 2 2 6 Max Gunslinging Chain 1 | . . . 1 1 . . 1 1 1 1 Shots Hit Robots 708 | . 31 19 75 17 . 3 143 118 106 196 Core Hits 370 | . 17 11 40 20 . 4 87 47 49 95 Critical Kills . | . . . . . . . . . . . Critical Parts Destroyed 10 | . . . 8 . . . . 2 . . Critical Strikes 43 | . . . 8 . . . 8 7 3 17 Burn 32 | . . . . . . . 7 5 3 17 Corrupt 1 | . . . . . . . 1 . . . Smash 10 | . . . 8 . . . . 2 . . Melee Attacks 55 | . . . 31 . . . . 16 . 8 Impact 55 | . . . 31 . . . . 16 . 8 Slashing . | . . . . . . . . . . . Piercing . | . . . . . . . . . . . Sneak Attacks 1 | . . . . . . . . 1 . . Combat Hostiles . | . . . . . . . . . . . Follow-up Attacks . | . . . . . . . . . . . Damage Inflicted 15248 | . 546 280 1316 223 . 136 2376 3292 2522 4557 Guns 12141 | . 535 269 658 223 . 26 2115 2354 1848 4113 Cannons 1317 | . . . . . . . 244 23 669 381 Explosions 654 | . . . 98 . . 110 . 446 . . Melee 1083 | . . . 558 . . . . 469 . 56 Ramming 53 | . 11 11 2 . . . 17 . 5 7 Kinetic 1043 | . 267 143 277 . . . 356 . . . Thermal 11415 | . . . 345 223 . 26 1740 2377 2517 4187 Explosive 556 | . . . . . . 110 . 446 . . Electromagnetic 1098 | . 268 126 134 . . . 263 . . 307 Impact 1083 | . . . 558 . . . . 469 . 56 Slashing . | . . . . . . . . . . . Piercing . | . . . . . . . . . . . Highest Corruption 18 | . . . . . . . 6 9 2 18 Average Corruption 5 | . . . . . . . 4 3 1 9 Corruption Purged . | . . . . . . . . . . . Corruption Blocked . | . . . . . . . . . . . Effects 260 | . . . . . . . 37 63 10 150 Message Errors 66 | . . . . . . . 10 10 1 45 Matter Fused 59 | . . . . . . . 8 15 3 33 Heat Flow Errors 39 | . . . . . . . 8 9 3 19 Energy Discharges 34 | . . . . . . . 5 7 3 19 Parts Rejected 4 | . . . . . . . . 1 . 3 Parts Fused 2 | . . . . . . . . 1 . 1 Data Loss (minor) 26 | . . . . . . . . 14 . 12 Data Loss (major) 8 | . . . . . . . 1 1 . 6 Misfires 11 | . . . . . . . 5 3 . 3 Alerts 4 | . . . . . . . . . . 4 Misdirections 3 | . . . . . . . . . . 3 Weapon Failures 4 | . . . . . . . . 2 . 2 Overload Shots . | . . . . . . . . . . . Overflow Damage 395 | . . . 180 . . 32 . 136 18 29 Projectiles 47 | . . . . . . . . . 18 29 Explosions 65 | . . . . . . 32 . 33 . . Melee 283 | . . . 180 . . . . 103 . . Knockbacks 7 | . . . 2 . . . . 5 . . Impact 6 | . . . 2 . . . . 4 . . Kinetic . | . . . . . . . . . . . Secondary 1 | . . . . . . . . 1 . . Self-Inflicted Damage 1 | . . . . . . 1 . . . . Shots 1 | . . . . . . 1 . . . . Rammed 1 | . . . . . . . . . . 1 Targets Rammed 12 | . 1 1 1 . . . 6 . 1 2 Kicked 11 | . 1 1 1 . . . 6 . 1 1 Crushed . | . . . . . . . . . . . Highest Temperature 753 | . 48 170 18 78 . . 713 406 297 753 Average Temperature 136 | . 16 83 5 30 . . 163 95 59 215 Received Heat Transfer 2355 | . 99 87 546 30 . . 729 117 111 636 Effects 83 | . . . . . . . 32 1 . 50 Shutdowns 18 | . . . . . . . 2 1 . 15 Energy Bleed 5 | . . . . . . . 2 . . 3 Interference 8 | . . . . . . . 8 . . . Matter Decay 5 | . . . . . . . 1 . . 4 Short Circuit 6 | . . . . . . . 3 . . 3 Damage (minor) 7 | . . . . . . . 3 . . 4 Damage (major) 30 | . . . . . . . 12 . . 18 Damage (core) 4 | . . . . . . . 1 . . 3 Siege Activations . | . . . . . . . . . . . Robots Corrupted 2 | . . . 1 . . . . . . 1 Combat Hostiles 2 | . . . 1 . . . . . . 1 Parts Fried 14 | . 1 . 7 . . . 1 3 . 2 Impact Corruptions 15 | . . . 10 . . . . 5 . . Robots Melted 8 | . . . . . . . 1 3 . 4 Combat Hostiles 8 | . . . . . . . 1 3 . 4 Parts Melted 82 | . . . . . . . 9 22 16 35 Heat Transferred 22562 | . . . 420 265 . 30 4170 4588 4514 8575 Parts Sabotaged . | . . . . . . . . . . . Parts Stolen . | . . . . . . . . . . . Parts Stripped . | . . . . . . . . . . . Power Chain Reactions 1 | . . . 1 . . . . . . . Alert | -11 -10 -10 -9 -9 -9 -8 -8 -7 -6 -5 ------- Run | Yrd Mat Min Mat Min Exi Min Mat Fac Fac Fac Peak Influence 474 | . 124 102 474 385 . 107 284 418 278 392 Initial 199 | . . 2 39 175 . . 41 114 199 128 Average 155 | . 28 88 311 236 . 102 168 199 136 111 Maximum Alert Level 2 | . . . 2 1 . . 1 2 1 1 Low Security (%) 67 | 100 100 100 25 40 . 100 71 48 79 79 Level 1 29 | . . . 29 59 . . 28 49 20 20 Level 2 2 | . . . 45 . . . . 2 . . Level 3 . | . . . . . . . . . . . Level 4 . | . . . . . . . . . . . Level 5 . | . . . . . . . . . . . High Security . | . . . . . . . . . . . Max Security . | . . . . . . . . . . . Squads Dispatched 32 | . . . 2 . . . 2 9 8 11 Investigation 1 | . . . . . . . 1 . . . Extermination 19 | . . . . . . . . 8 4 7 Reinforcement 5 | . . . 2 . . . 1 1 1 . Assault 1 | . . . . . . . . . . 1 Garrison 6 | . . . . . . . . . 3 3 Intercept . | . . . . . . . . . . . Searches Triggered . | . . . . . . . . . . . Construction Impeded . | . . . . . . . . . . . Haulers Reinforced . | . . . . . . . . . . . Active Scanning Responses . | . . . . . . . . . . . Cargo Convoy Interrupts 1 | . . . . . . . . . . 1 Stealth | -11 -10 -10 -9 -9 -9 -8 -8 -7 -6 -5 --------- Run | Yrd Mat Min Mat Min Exi Min Mat Fac Fac Fac Distress Signals 8 | . . . 3 . . . 1 2 1 1 Communications Jammed . | . . . . . . . . . . . Distress Signals . | . . . . . . . . . . . Times Spotted 206 | . 8 3 29 9 . 4 41 32 29 51 Peak Tracking Total 9 | . 3 2 9 3 . 4 8 4 5 4 Tactical Retreats 15 | . . . 5 3 . 1 4 1 1 . Traps | -11 -10 -10 -9 -9 -9 -8 -8 -7 -6 -5 ------- Run | Yrd Mat Min Mat Min Exi Min Mat Fac Fac Fac Traps Triggered 15 | . . . . . . . 5 5 4 1 Indirectly . | . . . . . . . . . . . Trap Hack Attempts . | . . . . . . . . . . . Triggered . | . . . . . . . . . . . Disarmed . | . . . . . . . . . . . Reprogrammed . | . . . . . . . . . . . Reused . | . . . . . . . . . . . Traps Extracted . | . . . . . . . . . . . Installed . | . . . . . . . . . . . Triggered 2 | . . . . 1 . . . . . 1 Machines | -11 -10 -10 -9 -9 -9 -8 -8 -7 -6 -5 ---------- Run | Yrd Mat Min Mat Min Exi Min Mat Fac Fac Fac Machines Disabled 16 | . . . . . . . . 15 1 . Max in Single Turn 5 | . . . . . . . . 5 1 . Garrison Access 4 | . . . . . . . 1 1 1 1 Machines Repaired . | . . . . . . . . . . . Machines Dismantled . | . . . . . . . . . . . Machines Sabotaged . | . . . . . . . . . . . Overloaded Fab Kills . | . . . . . . . . . . . Hacking | -11 -10 -10 -9 -9 -9 -8 -8 -7 -6 -5 --------- Run | Yrd Mat Min Mat Min Exi Min Mat Fac Fac Fac Machines Accessed 10 | . . . . . 1 . 1 4 3 1 Terminals 3 | . . . . . . . . 2 . 1 Fabricators 1 | . . . . . . . . 1 . . Repair Stations 1 | . . . . . . . . . 1 . Recycling Units . | . . . . . . . . . . . Scanalyzers . | . . . . . . . . . . . Garrison Access 4 | . . . . . . . 1 1 2 . Total Hacks 14 | . . . . . 1 . 1 6 5 1 Successful 7 | . . . . . 1 . 1 3 2 . Failed 7 | . . . . . . . . 3 3 1 Catastrophic 3 | . . . . . . . . 1 1 1 Database Lockouts . | . . . . . . . . . . . Manual 1 | . . . . . 1 . . . . . Terminals 3 | . . . . . . . . 2 . 1 Fabricators 1 | . . . . . . . . 1 . . Repair Stations 2 | . . . . . . . . . 2 . Recycling Units . | . . . . . . . . . . . Scanalyzers . | . . . . . . . . . . . Garrison Access 7 | . . . . . . . 1 3 3 . Terminal Hacks 2 | . . . . . 1 . . 1 . . Locate Traps 1 | . . . . . . . . 1 . . Derelict Proto ID Bank 1 | . . . . . 1 . . . . . Fabricator Hacks 1 | . . . . . . . . 1 . . Build 1 | . . . . . . . . 1 . . Repair Station Hacks 1 | . . . . . . . . . 1 . Scan Component 1 | . . . . . . . . . 1 . Recycling Unit Hacks . | . . . . . . . . . . . Scanalyzer . | . . . . . . . . . . . Garrison Access Hacks 3 | . . . . . . . 1 1 1 . Seal Access 3 | . . . . . . . 1 1 1 . Unauthorized Hacks . | . . . . . . . . . . . Terminals . | . . . . . . . . . . . Fabricators . | . . . . . . . . . . . Repair Stations . | . . . . . . . . . . . Recycling Units . | . . . . . . . . . . . Scanalyzers . | . . . . . . . . . . . Garrison Access . | . . . . . . . . . . . Data Cores Recovered 1 | . . . . . . . . 1 . . Used . | . . . . . . . . . . . Hacking Detections 6 | . . . . . . . . 3 2 1 Full Trace Events . | . . . . . . . . . . . Feedback Events . | . . . . . . . . . . . Feedback Blocked . | . . . . . . . . . . . Robot Schematics Acquired . | . . . . . . . . . . . Robots Built 3 | . . . . . . . . 3 . . Authchips . | . . . . . . . . . . . Time 67 | . . . . . . . . 67 . . Total Robot Build Rating 12 | . . . . . . . . 12 . . Part Schematics Acquired . | . . . . . . . . . . . Parts Built . | . . . . . . . . . . . Authchips . | . . . . . . . . . . . Time . | . . . . . . . . . . . Total Part Build Rating . | . . . . . . . . . . . Parts Repaired . | . . . . . . . . . . . Time . | . . . . . . . . . . . Parts Recycled . | . . . . . . . . . . . Recycled Matter . | . . . . . . . . . . . Retrieved Matter . | . . . . . . . . . . . Retrieved Components . | . . . . . . . . . . . Parts Scanalyzed . | . . . . . . . . . . . Part Schematics Acquired . | . . . . . . . . . . . Parts Damaged . | . . . . . . . . . . . Bothacking | -11 -10 -10 -9 -9 -9 -8 -8 -7 -6 -5 ------------ Run | Yrd Mat Min Mat Min Exi Min Mat Fac Fac Fac Used RIF Installer . | . . . . . . . . . . . Robots Hacked . | . . . . . . . . . . . Non-combat . | . . . . . . . . . . . Combat . | . . . . . . . . . . . Robot Hacks Applied . | . . . . . . . . . . . Relay Couplers Released 6 | . . . . . . . . . 4 2 Machine Destruction 2 | . . . . . . . . . . 2 Programmers 4 | . . . . . . . . . 4 . Fabnet Peak Effective % . | . . . . . . . . . . . Robots Rewired . | . . . . . . . . . . . Allies Hacked . | . . . . . . . . . . . Hacks Repelled . | . . . . . . . . . . . Allies | -11 -10 -10 -9 -9 -9 -8 -8 -7 -6 -5 -------- Run | Yrd Mat Min Mat Min Exi Min Mat Fac Fac Fac Total Allies 3 | . . . . . . . . 3 . . Largest Group 3 | . . . . . . . . 3 1 . Highest-Rated Group 60 | . . . . . . . . 60 20 . Highest-Rated Ally 20 | . . . . . . . . 20 20 . Total Orders . | . . . . . . . . . . . Ally Attacks 16 | . . . . . . . . 15 1 . Total Damage 253 | . . . . . . . . 228 25 . Kills 2 | . . . . . . . . 2 . . Allies Corrupted . | . . . . . . . . . . . Allies Melted . | . . . . . . . . . . . Intel | -11 -10 -10 -9 -9 -9 -8 -8 -7 -6 -5 ------- Run | Yrd Mat Min Mat Min Exi Min Mat Fac Fac Fac Robot Analysis Total . | . . . . . . . . . . . Derelict Logs Recovered 3 | . . 1 . 2 . . . . . . Drone Launches . | . . . . . . . . . . . Drone Recoveries . | . . . . . . . . . . . Exploration | -11 -10 -10 -9 -9 -9 -8 -8 -7 -6 -5 ------------- Run | Yrd Mat Min Mat Min Exi Min Mat Fac Fac Fac Turns Passed 17031 | 72 595 282 732 608 320 102 1831 4425 2896 5168 Spaces Moved 8209 | 66 406 196 397 460 266 78 869 2019 1662 1790 Core 38 | 31 . . 4 . . . 2 . . 1 Treads 206 | . . . . . . . . . . 206 Legs 7922 | 35 406 196 393 460 266 78 867 2019 1662 1540 Wheels . | . . . . . . . . . . . Hover 43 | . . . . . . . . . . 43 Flight . | . . . . . . . . . . . Fastest Speed 50 | 50 120 120 120 120 120 120 120 120 105 90 Average Speed 142 | 87 120 120 120 121 120 120 149 151 127 168 Slowest Speed 650 | 120 120 120 250 190 120 120 450 195 193 650 Overloaded Moves . | . . . . . . . . . . . Propulsion Burnouts . | . . . . . . . . . . . Robots Hopped . | . . . . . . . . . . . Cave-ins Triggered . | . . . . . . . . . . . Exploration Rate (%) 42 | 4 39 61 33 84 61 26 64 52 20 22 Regions Visited 10 Branch Regions 4 Pre-discovered Areas 1 | . . 1 . . . . . . . . Known Exits Taken 1 | . . . . 1 . . . . . . Unknown Exits Taken 9 | 1 1 1 1 . 1 1 1 1 1 . Scrap Searched 3 | . . 1 . 2 . . . . . . Spaces Dug 15 | . . . . . . . . 5 5 5 Terrain Destroyed 112 | . . . 9 . . 24 . 63 8 8 Melee 10 | . . . . . . . . 5 . 5 Projectile 11 | . . . . . . . . . 8 3 AOE 91 | . . . 9 . . 24 . 58 . . Terrain Rammed . | . . . . . . . . . . . Walls Destroyed . | . . . . . . . . . . . Machines Disabled . | . . . . . . . . . . . Actions | -11 -10 -10 -9 -9 -9 -8 -8 -7 -6 -5 --------- Run | Yrd Mat Min Mat Min Exi Min Mat Fac Fac Fac Total 12509 | 77 473 224 534 485 267 81 1222 3203 2266 3677 Wait 3389 | . 22 3 26 12 . . 185 1010 477 1654 Move 8199 | 65 405 195 396 459 265 77 868 2018 1661 1790 Hop . | . . . . . . . . . . . Pick Up 57 | 6 7 3 8 1 1 . 12 11 5 3 Fast Attach 140 | 6 3 . 10 1 . . 25 19 20 56 Attach 23 | . . . 5 . . . 6 2 1 9 Detach 8 | . . . 2 . . . . 1 . 5 Swap 53 | . 3 4 7 1 . 2 10 21 5 . Drop 137 | . 10 7 13 . 1 . 25 29 20 32 Fire 431 | . 22 11 35 11 . 2 85 71 76 118 Melee 55 | . . . 31 . . . . 16 . 8 Ram . | . . . . . . . . . . . Kick 11 | . 1 1 1 . . . 6 . 1 1 Crush 1 | . . . . . . . . . . 1 Escape Stasis 5 | . . . . . . . . 5 . . Rewire . | . . . . . . . . . . . Trap . | . . . . . . . . . . . Miscellaneous . | . . . . . . . . . . . Route ------- -11/Scrapyard -10/Materials (discovered 2 exits: [*Mat] / [*Min]) -10/Mines -9/Materials -9/Mines (discovered 3 exits: *Mat x2 / *Exi) -9/Exiles (discovered 2 exits: [*Min x2]) -8/Mines -8/Materials -7/Factory -6/Factory (discovered 2 exits: *Fac / [*Low]) -5/Factory History --------- Turn | Location | Event 20 | -11/Scrapyard | Discovered new exit (range 16) 73 | -11/Scrapyard | Entered Materials 102 | -10/Materials | Discovered new exit (range 16) 317 | -10/Materials | Build established: Mutant 468 | -10/Materials | Discovered new exit (range 16) 668 | -10/Materials | Entered Mines 715 | -10/Mines | Learned Materials security intel 796 | -10/Mines | Learned location of Storage (-9) 941 | -10/Mines | Discovered new exit (range 9) 950 | -10/Mines | Entered Materials 950 | -9/Materials | Evolved 2 slots: Propulsion x1, Utility x1 1095 | -9/Materials | Discovered new exit (range 14) 1210 | -9/Materials | Core integrity fell below 50% 1243 | -9/Materials | Lost 6 parts (1p3n1u1w) 1536 | -9/Materials | Build established: Scavenger-Mutant 1682 | -9/Materials | Entered Mines 1693 | -9/Mines | Learned Materials terminal intel 1772 | -9/Mines | Discovered new exit (range 8) 2043 | -9/Mines | Discovered new exit (range 8) 2110 | -9/Mines | Identified exit to Exiles 2283 | -9/Mines | Deemed a non-threat by the Exiles lab entrance 2290 | -9/Mines | Entered Exiles 2323 | -9/Exiles | Met 8R-AWN 2334 | -9/Exiles | Discovered new exit (range 14) 2380 | -9/Exiles | Met EX-HEX 2424 | -9/Exiles | Met EX-BIN 2446 | -9/Exiles | Aligned with FarCom system 2448 | -9/Exiles | Given EX-Vault access code 2481 | -9/Exiles | Opened EX-Vault 2490 | -9/Exiles | Found Firepult 2514 | -9/Exiles | Warned to stay clear of 0b10 Research branches 2551 | -9/Exiles | Met EX-DEC 2592 | -9/Exiles | Discovered new exit (range 14) 2610 | -9/Exiles | Left Exiles lab with Firepult 2610 | -9/Exiles | Entered Mines 2699 | -8/Mines | Discovered new exit (range 12) 2712 | -8/Mines | Entered Materials 2712 | -8/Materials | Evolved 2 slots: Utility x1, Weapon x1 2713 | -8/Materials | Loaded intel: 12 terminal locations 2908 | -8/Materials | Lost 3 parts (2n1u) 3213 | -8/Materials | Build established: Scavenger-Skirmisher 3654 | -8/Materials | Build established: Scavenger-Tank 3710 | -8/Materials | Core integrity fell below 50% 4383 | -8/Materials | Lost 3 parts (1p1u1w) 4467 | -8/Materials | Discovered new exit (range 16) 4543 | -8/Materials | Entered Factory 4543 | -7/Factory | Evolved 2 slots: Power x1, Utility x1 5397 | -7/Factory | Build established: Mutant 5873 | -7/Factory | Build established: Tank 8050 | -7/Factory | Build established: Mutant 8426 | -7/Factory | Build established: Tank 8436 | -7/Factory | Fabricated B-48 Gladiator (x3) 8937 | -7/Factory | Discovered new exit (range 15) 8968 | -7/Factory | Entered another Factory area 8968 | -6/Factory | Accompanied by 1 ally 8968 | -6/Factory | Evolved 2 slots: Propulsion x1, Utility x1 10319 | -6/Factory | Garrison activated, responded to threat 11007 | -6/Factory | Discovered new exit (range 3) 11057 | -6/Factory | Discovered new exit (range 7) 11864 | -6/Factory | Entered another Factory area 11864 | -5/Factory | Evolved 2 slots: Utility x1, Weapon x1 13036 | -5/Factory | Build established: Skirmisher 13154 | -5/Factory | Cargo convoy interrupted 13579 | -5/Factory | Build established: Tank 13724 | -5/Factory | Lost 5 parts (1p2n1u1w) 14674 | -5/Factory | Build established: Scavenger-Skirmisher 15017 | -5/Factory | System corruption reached 10% 16018 | -5/Factory | Core integrity fell below 50% 16283 | -5/Factory | Lost 3 parts (1n1u1w) 16438 | -5/Factory | Spotted B-75 Beast 16655 | -5/Factory | Build established: Scavenger-Assassin 16761 | -5/Factory | Garrison activated, responded to threat 16790 | -5/Factory | Core integrity fell below 20% 16813 | -5/Factory | Lost 3 parts (2n1u) 16967 | -5/Factory | Lost 6 parts (1p1n2u2w) 17032 | -5/Factory | Destroyed by S-27 Virus with Autogun Last Messages --------------- VPCA9FZTFIX|KQSBRBBD1 6KSKGRE:1UTF K-01 Serf collects debris. NPR TCGOVTCU4SF2KSG&WNO2N1I9E Acquired 60 matter. K-01 Serf cleans the Fusion Modulator. K-01 Serf collects debris. System corrupted: Energy discharge (-97). K-01 Serf collects debris. Variable Charge Gun destroyed. Neutrino Core destroyed. S-27 Virus destroyed. U-05 Engineer builds a Wall. K-01 Serf collects debris. Acquired 25 matter. System corrupted: Component data lost. Imp. EM Pulse Cannon destroyed. Acquired Lgt. Nuclear Core. K-01 Serf collects debris. R-10 Processor collects Autogun. Imp. VSS Leg destroyed. Map ----- +----------------------------------------------------+ | ????????????#????##?#?????#??????????????????????? | | ???????#????#?????????????????? ?????????????????? | | ??????????????????#??????????????????????????????? | | ???????#?????????????????????????????????????????? | | ????????????#?????????????#??????????????????????? | | ??? ???????????????????#?????????????????????????? | | ???????????????????????????#????#?#??????????????? | | ?????????#???#????#??#????#??????????????????????? | | ???#??????????#??##############?#????????????????? | | ????????????????## #???#??????????????? | | ???? ????????????# % #?#????????????????? | | ???????#??????#??# """" #?##???"???????????? | | ?????#????##??#??# """""" #???#???"??????????? | | ??????????#?????## """"" ##?????????????????? | | ???"?? ???????? # | """" #?#???? ???????????? | | ?"?????????#?#???# % % #??????????????????? | | ???????#?#???????# """" #??????????????????? | | ???? ?#??#???????# " " #??##??????????????? | | ???????#?#???????# ########+#####?????? | | ?????#??#?##???#?# + ??????? | | ??? ???#??###????# # g #?????????? | | ########################+###### #?????????? | | k k = sR #?????????? | | s ########???????????? | | ##+#??????????????????? | | ==! """ """ !@ #?? ?????????????????? | | =!| """ """ ! # ????????????????????? | | ######## =!| """ """ ! #???????"?????????????? | | # #?????????????????????? | | """ # """ """ """ """ #???????? ????????????? | | """ + """ """ """ """ #?????????????????????? | | """ # """ """ """ """ +?????"???????????????? | | # #?????????????????????? | | | " " # ! #?????????????????????? | | "Y" ##########w##########???? ????????????????? | | """ ##??????? ????????#?????????????????????? | | #???????""""??????????????????????????????? | | ########?????? ? ???? ?????????????????????????? | | ????????#???????"""??????????????????????????????? | | ??????????? ??? ????? ????????????????????????? | | ????????#??? ??""""?????? ?? ????????????????????? | | ???#???#???????? ????????????????H?????????????? | | ????#?????#?????###?#????????????????????????????? | | ??????#??????????????????????????????????????????? | | ??????????#??????????????????????????????????????? | | ???????????#?????????????????????????????????????? | | ?????????????????????????????????????????????????? | | ?????????????????????????????????????????????????? | | ?????????????????????????????????????????????????? | | ?????????????????????????????????????????????????? | +----------------------------------------------------+ Best States ------------- Heat Dissipation 67 Energy Generation 33 Energy Capacity 950 Matter Stores 300 Matter Capacity 300 Sight Range 22 Terrain Scan Range 16 Terrain Scan Density 10 Additional Mass Support 9 Armor Coverage 825 Resistance: TH 25 Resistance: EX 25 Propulsion Shielding 66 Weapon Shielding 33 Evasion (%) 55 Target Analysis 6 Recoil Reduction 1 Particle Charging 20 Offensive Hacking 10 Item Schematics ----------------- None Robot Schematics ------------------ None Fabricated ------------ B-48 Gladiator | x3 | -7/Factory | Preloaded Alien Tech Used ----------------- None Achievements -------------- None Challenges ------------ None Game ------ Seed GodRelayProjector Manual? 0 Play Time 02:07:35 Cumulative 18.7 hours Start 2024.04.24 @ 21:53:37 End 2024.04.25 @ 18:23:32 Sessions 3 Manual Loads 0 Difficulty Rogue Special Mode None Game No. 25 Rogue 22 Adventurer 0 Explorer 3 Win Type - Total 0 Types 0/0/0/0/0/0/0/0/0 Lore% 15 Gallery% 26 Achievement% 21 Wizard Run 0 Options --------- Layout 1 ASCII 0 Keyboard 0 Movement Arrows Keybinds 0 Fullscreen 0 Font 28/ProggyBold Map View 50x43 Zoom Use 0% Tactical HUD 0 Map Filters NONE Filters NONE Steam 1 RUN: 595897f3-9dec-4f39-909b-69c36a50d3ce